bitfinex-derivatives/quotes_BTCF0:USTF0_20251118
["timestamp","ask_amount","ask_price","bid_price","bid_amount"]
[1763435603185,0.27323803,90460.0,90459.0,0.10294]
[1763435603691,0.08925217,90468.0,90467.0,0.06969]
[1763435603876,0.27104,90477.0,90476.0,0.06969]
[1763435604282,0.43793257,90477.0,90476.0,0.06969]
[1763435605685,0.55386374,90477.0,90476.0,0.06969]
[1763435606084,0.58084374,90477.0,90476.0,0.02974936]
[1763435606283,0.58084374,90477.0,90464.0,0.02068]
[1763435606284,0.05396,90476.0,90475.0,0.02974936]
[1763435606484,0.05396,90468.0,90467.0,0.03966682]
[1763435606692,0.05396,90468.0,90466.0,0.03966682]
[1763435606877,0.05287,90467.0,90466.0,0.03966682]
[1763435607084,0.05397803,90470.0,90469.0,0.07091]
[1763435607582,0.05178,90465.0,90464.0,0.13125682]
[1763435607886,0.0252,90464.0,90463.0,0.03966682]
[1763435608093,0.0252,90458.0,90457.0,0.1263]
[1763435608489,0.00219803,90460.0,90459.0,0.1263]
[1763435608995,0.29835803,90460.0,90459.0,0.1263]
[1763435609887,0.27315803,90460.0,90459.0,0.1263]
[1763435610987,0.27315803,90460.0,90459.0,0.15933424]
[1763435613492,0.29835803,90460.0,90459.0,0.15933424]
[1763435614390,0.08895117,90477.0,90476.0,0.07091]
[1763435614591,0.00219803,90480.0,90479.0,0.07091]
[1763435614794,0.27311803,90480.0,90479.0,0.10394424]
[1763435615098,0.46381471,90480.0,90479.0,0.10394424]
[1763435615295,0.43861471,90480.0,90479.0,0.10394424]
[1763435615892,0.52491665,90480.0,90479.0,0.10394424]
[1763435617600,0.55011665,90480.0,90479.0,0.10394424]
[1763435617795,0.55011665,90480.0,90479.0,0.08180424]
[1763435618592,0.55011665,90480.0,90479.0,0.04495424]
[1763435619200,0.55011665,90480.0,90479.0,0.08180424]
[1763435619996,0.55011665,90480.0,90479.0,0.025834]
[1763435620201,0.56195665,90480.0,90479.0,0.025834]
[1763435620499,0.55011665,90480.0,90479.0,0.025834]
[1763435621596,0.56195665,90480.0,90479.0,0.025834]
[1763435621997,0.55011665,90480.0,90479.0,0.025834]
[1763435622298,0.53755796,90480.0,90479.0,0.025834]
[1763435622504,0.54939796,90480.0,90479.0,0.025834]
[1763435622799,0.27773129,90480.0,90479.0,0.096744]
[1763435622999,0.54861129,90480.0,90479.0,0.096744]
[1763435623203,0.27773129,90480.0,90479.0,0.096744]
[1763435623410,0.52341129,90480.0,90479.0,0.096744]
[1763435624400,0.59289129,90480.0,90479.0,0.025834]
[1763435625203,0.59285129,90480.0,90479.0,0.025834]
[1763435626901,0.59285129,90480.0,90479.0,0.096744]
[1763435628004,0.52337129,90480.0,90479.0,0.096744]
[1763435630006,0.55811129,90480.0,90479.0,0.096744]
[1763435630304,0.52337129,90480.0,90479.0,0.096744]
[1763435632204,0.51008108,90480.0,90479.0,0.096744]
[1763435632407,0.35787461,90480.0,90479.0,0.096744]
[1763435632905,0.35787461,90480.0,90479.0,0.074604]
[1763435634199,0.00073267,90480.0,90479.0,0.11436976]
[1763435634406,0.00044207,90486.0,90479.0,0.11436976]
[1763435634407,0.00044207,90486.0,90485.0,0.07091]
[1763435634906,0.08967648,90486.0,90485.0,0.07091]
[1763435635109,0.00044207,90486.0,90485.0,0.13055725]
[1763435635501,0.145,90489.0,90480.0,0.02400803]
[1763435635502,0.11886581,90489.0,90488.0,0.07091]
[1763435636111,0.27647995,90489.0,90488.0,0.07091]
[1763435636714,0.27013995,90489.0,90488.0,0.06794]
[1763435637009,0.20699995,90489.0,90488.0,0.06794]
[1763435637209,0.23539995,90489.0,90488.0,0.06794]
[1763435637613,0.08813414,90489.0,90488.0,0.06794]
[1763435637804,0.00073267,90490.0,90489.0,0.06971]
[1763435638313,0.00073267,90490.0,90489.0,0.10946696]
[1763435638509,0.00073267,90490.0,90489.0,0.06971]
[1763435638705,0.00016578,90498.0,90497.0,0.06971]
[1763435639506,0.14625908,90498.0,90497.0,0.06971]
[1763435639701,0.05696578,90498.0,90497.0,0.06971]
[1763435639906,0.00016578,90498.0,90497.0,0.03972936]
[1763435640117,0.05696578,90498.0,90497.0,0.03972936]
[1763435640315,0.05696578,90498.0,90497.0,0.10943936]
[1763435640617,0.0568,90492.0,90491.0,0.03972936]
[1763435640815,0.08838849,90498.0,90488.0,0.00016578]
[1763435640816,0.0568,90491.0,90490.0,0.00219803]
[1763435641011,0.05696578,90498.0,90497.0,0.06971]
[1763435641407,0.22363071,90498.0,90497.0,0.06971]
[1763435641601,0.22363071,90498.0,90497.0,0.03583]
[1763435642114,0.22363071,90498.0,90490.0,0.06011936]
[1763435642115,0.0568,90491.0,90490.0,0.12982936]
[1763435642314,0.04351188,90491.0,90490.0,0.13202739]
[1763435643516,0.11746499,90498.0,90497.0,0.03583]
[1763435643913,0.28269002,90498.0,90497.0,0.03583]
[1763435644116,0.03022,90491.0,90490.0,0.0901]
[1763435644418,0.03022,90491.0,90490.0,0.09229803]
[1763435644614,0.00073267,90490.0,90488.0,0.03991723]
[1763435644819,0.03022,90469.0,90468.0,0.05539]
[1763435645024,0.30086,90469.0,90468.0,0.0901792]
[1763435645523,0.20086,90469.0,90468.0,0.0901792]
[1763435645825,0.36583944,90469.0,90468.0,0.0901792]
[1763435647117,0.16497944,90469.0,90468.0,0.1598892]
[1763435647315,0.08977343,90469.0,90468.0,0.1598892]
[1763435647515,0.00016578,90478.0,90477.0,0.06971]
[1763435647711,0.00016578,90478.0,90477.0,0.1044992]
[1763435647921,0.14695792,90490.0,90489.0,0.06971]
[1763435648217,0.01438,90498.0,90497.0,0.02039]
[1763435648419,0.00073267,90500.0,90499.0,0.06971]
[1763435648611,0.00073267,90500.0,90499.0,0.1044992]
[1763435648816,0.01251215,90509.0,90508.0,0.0901]
[1763435649016,0.00073267,90510.0,90509.0,0.06971]
[1763435649223,0.00073267,90510.0,90509.0,0.1044992]
[1763435649621,0.18014946,90510.0,90509.0,0.1044992]
[1763435649822,0.19313721,90510.0,90509.0,0.1044992]
[1763435650022,0.19313721,90510.0,90509.0,0.0706192]
[1763435650023,0.28015375,90510.0,90509.0,0.0706192]
[1763435650325,0.28015375,90510.0,90509.0,0.1044992]
[1763435650326,0.26577375,90510.0,90509.0,0.1044992]
[1763435651823,0.28015375,90510.0,90509.0,0.1044992]
[1763435652419,0.08774921,90510.0,90509.0,0.1044992]
[1763435652724,0.08701654,90510.0,90509.0,0.1044992]
[1763435653018,0.00016578,90519.0,90518.0,0.06971]
[1763435653227,0.00016578,90519.0,90518.0,0.1044992]
[1763435653414,0.0907743,90519.0,90518.0,0.1044992]
[1763435653625,0.01438,90507.0,90506.0,0.05961327]
[1763435653813,0.01438,90507.0,90480.0,0.03038999]
[1763435653814,0.00719,90501.0,90492.0,0.02039]
[1763435654014,0.00719,90501.0,90480.0,0.02039]
[1763435654015,0.00719,90481.0,90480.0,0.05841803]
[1763435654210,0.01438,90481.0,90480.0,0.09229803]
[1763435654417,0.27056,90486.0,90485.0,0.06971]
[1763435655215,0.00719,90486.0,90485.0,0.06971]
[1763435655817,0.00073267,90490.0,90489.0,0.06971]
[1763435656220,0.16680181,90490.0,90489.0,0.06971]
[1763435657328,0.25378448,90490.0,90489.0,0.06971]
[1763435658527,0.25378448,90490.0,90480.0,0.02039]
[1763435658528,0.01995,90481.0,90480.0,0.02039]
[1763435658718,0.25378448,90490.0,90476.0,0.00016578]
[1763435658719,0.02552,90477.0,90476.0,0.00016578]
[1763435659125,0.02552,90477.0,90476.0,0.03643578]
[1763435659323,0.23394059,90490.0,90476.0,0.03643578]
[1763435661035,0.16613586,90489.0,90488.0,0.07001]
[1763435661334,0.08654115,90490.0,90480.0,0.02141]
[1763435661535,0.16481145,90489.0,90480.0,0.00219803]
[1763435661720,0.16481145,90489.0,90480.0,0.02360803]
[1763435661920,0.16481145,90489.0,90476.0,0.00016578]
[1763435662117,0.14695792,90486.0,90476.0,0.00016578]
[1763435662416,0.16638515,90485.0,90476.0,0.00016578]
[1763435662821,0.16638515,90487.0,90476.0,0.00016578]
[1763435663030,0.87144866,90487.0,90480.0,0.00219803]
[1763435663228,0.27048,90486.0,90480.0,0.00219803]
[1763435663422,0.43540696,90486.0,90480.0,0.00219803]
[1763435663621,0.27048,90486.0,90480.0,0.00219803]
[1763435664022,0.16495881,90485.0,90480.0,0.00219803]
[1763435664229,0.27048,90484.0,90480.0,0.00219803]
[1763435664620,0.43543881,90483.0,90476.0,0.00016578]
[1763435665027,0.11052001,90482.0,90435.0,0.07885496]
[1763435665227,0.1647806,90482.0,90470.0,0.00219803]
[1763435665923,0.1647806,90482.0,90471.0,0.03158173]
[1763435666134,0.27048,90481.0,90480.0,0.02141]
[1763435666319,0.27048,90481.0,90480.0,0.09361803]
[1763435666517,0.43617462,90481.0,90480.0,0.09361803]
[1763435666721,0.16569462,90481.0,90480.0,0.09361803]
[1763435666922,0.43617462,90481.0,90480.0,0.09361803]
[1763435667118,0.1651672,90489.0,90488.0,0.06718]
[1763435667427,0.27048,90493.0,90492.0,0.02078]
[1763435667626,0.27048,90493.0,90492.0,0.0861404]
[1763435667929,0.4356472,90493.0,90492.0,0.0861404]
[1763435668122,0.4356472,90493.0,90492.0,0.1195304]
[1763435668523,0.4356472,90493.0,90492.0,0.0315704]
[1763435668524,0.52492781,90493.0,90492.0,0.0315704]
[1763435668729,0.52492781,90493.0,90492.0,0.1195304]
[1763435669225,0.52492781,90493.0,90492.0,0.0315704]
[1763435669426,0.52492781,90493.0,90492.0,0.0355704]
[1763435669821,0.52492781,90493.0,90492.0,0.004]
[1763435670020,0.52492781,90493.0,90492.0,0.035577]
[1763435670424,0.52492781,90493.0,90492.0,0.004]
[1763435671625,0.51163756,90493.0,90492.0,0.004]
[1763435672632,0.25444781,90493.0,90492.0,0.09196]
[1763435672831,0.52488781,90493.0,90492.0,0.09196]
[1763435673025,0.52488781,90493.0,90492.0,0.06982]
[1763435673227,0.53758781,90493.0,90492.0,0.03643]
[1763435673435,0.0127,90491.0,90480.0,0.02141]
[1763435673731,0.0127,90482.0,90481.0,0.06537118]
[1763435673924,0.0127,90482.0,90481.0,0.03158118]
[1763435674125,0.17769701,90482.0,90481.0,0.03158118]
[1763435674625,0.17769701,90482.0,90481.0,0.09876118]
[1763435675131,0.16499701,90482.0,90481.0,0.09876118]
[1763435675327,0.16499701,90482.0,90481.0,0.10276118]
[1763435675519,0.16477068,90490.0,90481.0,0.10276118]
[1763435675724,0.14695792,90491.0,90482.0,0.03158118]
[1763435675923,0.14695792,90491.0,90483.0,0.03158118]
[1763435676142,0.16510784,90490.0,90484.0,0.03158118]
[1763435676328,0.16510784,90490.0,90485.0,0.03158118]
[1763435676534,0.16510784,90490.0,90486.0,0.03158118]
[1763435676830,0.16510784,90490.0,90481.0,0.03779]
[1763435677028,0.16510784,90490.0,90482.0,0.03159037]
[1763435677228,0.14695792,90491.0,90483.0,0.03159037]
[1763435677428,0.16618279,90490.0,90484.0,0.03159037]
[1763435677624,0.16618279,90490.0,90481.0,0.004]
[1763435677818,0.16618279,90490.0,90482.0,0.03154868]
[1763435678023,0.16618279,90490.0,90483.0,0.03154868]
[1763435678225,0.16618279,90490.0,90481.0,0.004]
[1763435678828,0.16618279,90490.0,90467.0,0.02976224]
[1763435679028,0.16618279,90490.0,90482.0,0.004]
[1763435679332,0.31342094,90492.0,90482.0,0.004]
[1763435679721,0.14695792,90492.0,90482.0,0.004]
[1763435679920,0.16653233,90491.0,90482.0,0.004]
[1763435680531,0.17044,90490.0,90482.0,0.03379]
[1763435680730,0.2704,90489.0,90482.0,0.03379]
[1763435680931,0.4366801,90489.0,90481.0,0.004]
[1763435681134,0.2704,90489.0,90481.0,0.004]
[1763435681332,0.2704,90489.0,90469.0,0.02976224]
[1763435681527,0.1662801,90488.0,90482.0,0.004]
[1763435682134,0.1662801,90488.0,90470.0,0.00219803]
[1763435682433,0.29391584,90481.0,90480.0,0.00219803]
[1763435682635,0.1662801,90488.0,90466.0,0.02976224]
[1763435682829,0.46022653,90481.0,90470.0,0.00219803]
[1763435683029,0.29391584,90481.0,90470.0,0.00219803]
[1763435683434,0.16616535,90480.0,90470.0,0.00219803]
[1763435683738,0.14887318,90480.0,90472.0,0.08918]
[1763435684123,0.04887318,90480.0,90472.0,0.08918]
[1763435685132,0.04887318,90480.0,90475.0,0.02078]
[1763435685336,0.2704,90479.0,90476.0,0.05539]
[1763435685631,0.16653369,90478.0,90476.0,0.05539]
[1763435685838,0.06653369,90478.0,90476.0,0.05539]
[1763435687127,0.06653369,90478.0,90476.0,0.08878]
[1763435687332,0.06653369,90478.0,90477.0,0.12257]
[1763435687530,0.33693369,90478.0,90477.0,0.12257]
[1763435687735,0.13693369,90478.0,90477.0,0.12257]
[1763435687937,0.30382235,90478.0,90477.0,0.12257]
[1763435688238,0.30382235,90478.0,90477.0,0.06718]
[1763435689339,0.16688866,90478.0,90477.0,0.06718]
[1763435689546,0.06688866,90478.0,90477.0,0.06718]
[1763435689839,0.27036,90478.0,90477.0,0.06718]
[1763435690239,0.4367906,90478.0,90477.0,0.0996271]
[1763435691837,0.3367906,90478.0,90477.0,0.0996271]
[1763435693045,0.1664306,90478.0,90477.0,0.0996271]
[1763435693237,0.3367906,90478.0,90477.0,0.0996271]
[1763435693438,0.17036,90478.0,90477.0,0.0996271]
[1763435693838,0.32231634,90478.0,90477.0,0.0996271]
[1763435695342,0.39267634,90478.0,90477.0,0.0996271]
[1763435697350,0.43353634,90478.0,90477.0,0.0324471]
[1763435698046,0.43353634,90478.0,90477.0,0.1050571]
[1763435698350,0.43353634,90478.0,90477.0,0.06229198]
[1763435698746,0.43353634,90478.0,90477.0,0.0695771]
[1763435698952,0.43353634,90478.0,90477.0,0.13490198]
[1763435699347,0.43353634,90478.0,90477.0,0.1050571]
[1763435699648,0.36585996,90478.0,90477.0,0.1050571]
[1763435700151,0.34542996,90478.0,90477.0,0.1050571]
[1763435700342,0.05463996,90478.0,90477.0,0.1050571]
[1763435700544,0.08928061,90493.0,90492.0,0.07261]
[1763435700745,0.21556413,90510.0,90494.0,0.07261]
[1763435700949,0.39918626,90495.0,90494.0,0.0324471]
[1763435701150,0.20736709,90495.0,90494.0,0.0695771]
[1763435701353,0.43678709,90495.0,90494.0,0.1050571]
[1763435701557,0.56743897,90495.0,90494.0,0.1050571]
[1763435701754,0.52657897,90495.0,90494.0,0.1050571]
[1763435702144,0.56743897,90495.0,90494.0,0.1050571]
[1763435702349,0.56743897,90495.0,90494.0,0.0324471]
[1763435702549,0.56743897,90495.0,90494.0,0.0695771]
[1763435702855,0.27028,90502.0,90494.0,0.5050571]
[1763435703050,0.27028,90511.0,90510.0,0.09947]
[1763435703264,0.30689,90511.0,90510.0,0.13411513]
[1763435703554,0.59708959,90511.0,90510.0,0.0324471]
[1763435703752,0.59708959,90511.0,90510.0,0.03464513]
[1763435703950,0.59708959,90511.0,90510.0,0.07177513]
[1763435704145,0.59708959,90511.0,90510.0,0.03464513]
[1763435705053,0.59708959,90511.0,90510.0,0.0324471]
[1763435705660,0.59708959,90511.0,90510.0,0.03464513]
[1763435705851,0.59708959,90511.0,90510.0,0.10725513]
[1763435706258,0.59708959,90511.0,90510.0,0.10715513]
[1763435706562,0.59708959,90511.0,90510.0,0.03454513]
[1763435707254,0.59708959,90511.0,90501.0,0.00016578]
[1763435707255,0.07373,90502.0,90501.0,0.00016578]
[1763435707451,0.06044255,90502.0,90501.0,0.00016578]
[1763435707762,0.06044255,90502.0,90480.0,0.02686]
[1763435707763,0.03661,90491.0,90490.0,0.1024477]
[1763435707957,0.2702,90491.0,90490.0,0.10464573]
[1763435708563,0.2702,90491.0,90490.0,0.07480803]
[1763435708965,0.21556413,90510.0,90499.0,0.07261]
[1763435709180,0.2702,90509.0,90500.0,0.00219803]
[1763435709467,0.16581955,90508.0,90500.0,0.00219803]
[1763435709663,0.16581955,90508.0,90507.0,0.07261]
[1763435709861,0.00016578,90514.0,90513.0,0.07261]
[1763435710162,0.07400617,90526.0,90525.0,0.07261]
[1763435710366,0.34420617,90526.0,90525.0,0.07261]
[1763435710662,0.34420617,90526.0,90520.0,0.00219803]
[1763435710663,0.07373,90521.0,90520.0,0.00219803]
[1763435711057,0.24041404,90521.0,90520.0,0.00219803]
[1763435711457,0.32716364,90521.0,90520.0,0.00219803]
[1763435712065,0.32716364,90521.0,90520.0,0.07480803]
[1763435712463,0.52359364,90521.0,90520.0,0.07480803]
[1763435713062,0.59732364,90521.0,90520.0,0.07480803]
[1763435713863,0.56020364,90521.0,90520.0,0.07480803]
[1763435714165,0.52359364,90521.0,90520.0,0.07480803]
[1763435714366,0.52355364,90521.0,90520.0,0.07480803]
[1763435714669,0.0867496,90521.0,90520.0,0.07480803]
[1763435714868,0.27039617,90526.0,90520.0,0.07480803]
[1763435714869,0.27039617,90526.0,90525.0,0.07261]
[1763435715371,0.34412617,90526.0,90525.0,0.07261]
[1763435716259,0.36022808,90526.0,90525.0,0.07261]
[1763435716669,0.43395808,90526.0,90525.0,0.07261]
[1763435716972,0.36022808,90526.0,90525.0,0.07261]
[1763435717361,0.0768243,90526.0,90525.0,0.07261]
[1763435717560,0.00016578,90530.0,90529.0,0.07261]
[1763435717962,0.16588949,90530.0,90529.0,0.07261]
[1763435718159,0.21556413,90560.0,90530.0,0.00219803]
[1763435718366,0.21556413,90550.0,90538.0,0.07261]
[1763435718564,0.16669957,90549.0,90540.0,0.02905803]
[1763435718764,0.21556413,90550.0,90540.0,0.02905803]
[1763435719075,0.09471181,90556.0,90555.0,0.08626]
[1763435719262,0.005,90556.0,90555.0,0.08626]
[1763435719469,0.00016569,90565.0,90564.0,0.11345]
[1763435719767,0.16520028,90565.0,90564.0,0.14646583]
[1763435720670,0.00016569,90565.0,90564.0,0.14646583]
[1763435721869,0.00116569,90565.0,90564.0,0.14646583]
[1763435723167,0.00116569,90565.0,90564.0,0.12432583]
[1763435723676,0.08852,90561.0,90552.0,0.02719]
[1763435723874,0.08852,90547.0,90546.0,0.00016569]
[1763435724179,0.08852,90547.0,90515.0,0.07885496]
[1763435724180,0.08852,90532.0,90531.0,0.04225]
[1763435724368,0.08852,90532.0,90531.0,0.07519509]
[1763435724678,0.08852,90532.0,90531.0,0.11920509]
[1763435724876,0.26996,90538.0,90531.0,0.11920509]
[1763435725077,0.26996,90538.0,90532.0,0.03294509]
[1763435725369,0.26996,90538.0,90533.0,0.03294509]
[1763435725576,0.26996,90538.0,90534.0,0.03294509]
[1763435725872,0.04471,90536.0,90535.0,0.03294509]
[1763435726065,0.08842252,90538.0,90537.0,0.08626]
[1763435726267,0.00016569,90544.0,90543.0,0.08626]
[1763435726569,0.00016569,90544.0,90543.0,0.11905098]
[1763435726570,0.16606371,90544.0,90543.0,0.11905098]
[1763435726971,0.09027144,90544.0,90543.0,0.08626]
[1763435727169,0.00016569,90544.0,90543.0,0.08626]
[1763435727474,0.00016569,90544.0,90543.0,0.11905102]
[1763435727782,0.00016569,90544.0,90543.0,0.08626]
[1763435727969,0.00016569,90544.0,90543.0,0.1190596]
[1763435728164,0.25484,90568.0,90565.0,0.0871]
[1763435728373,0.26992,90571.0,90565.0,0.0871]
[1763435728574,0.16516072,90566.0,90565.0,0.0871]
[1763435728774,0.00027604,90566.0,90565.0,0.0871]
[1763435728967,0.00561575,90583.0,90574.0,0.0871]
[1763435729180,0.00561575,90583.0,90574.0,0.11990558]
[1763435729366,0.17342426,90575.0,90574.0,0.0871]
[1763435729571,0.16666757,90575.0,90574.0,0.08034219]
[1763435729973,0.0121344,90576.0,90575.0,0.0871]
[1763435730174,0.04273,90576.0,90575.0,0.0871]
[1763435730374,0.08934,90571.0,90570.0,0.00219803]
[1763435730775,0.25385587,90571.0,90570.0,0.00219803]
[1763435732078,0.08934,90566.0,90565.0,0.00016569]
[1763435733176,0.08934,90566.0,90565.0,0.04427569]
[1763435733577,0.09134,90571.0,90570.0,0.04411]
[1763435733776,0.08934,90566.0,90565.0,0.04427569]
[1763435733981,0.08934,90566.0,90565.0,0.00016569]
[1763435734282,0.25558043,90566.0,90565.0,0.00016569]
[1763435734687,0.08934,90550.0,90549.0,0.04411]
[1763435734982,0.08934,90550.0,90540.0,0.1420376]
[1763435734983,0.04273,90541.0,90540.0,0.1420376]
[1763435735282,0.08934,90541.0,90540.0,0.12198904]
[1763435735479,0.08934,90541.0,90540.0,0.03488904]
[1763435735878,0.17957272,90541.0,90540.0,0.03488904]
[1763435736076,0.08934,90541.0,90540.0,0.03488904]
[1763435736474,0.08934,90541.0,90540.0,0.07899904]
[1763435737184,0.00016569,90550.0,90549.0,0.04411]
[1763435737379,0.00016569,90550.0,90549.0,0.0871]
[1763435737577,0.34183746,90550.0,90537.0,0.0297476]
[1763435737779,0.08934,90541.0,90540.0,0.00219803]
[1763435737986,0.08934,90541.0,90540.0,0.03459912]
[1763435738570,0.30471545,90550.0,90540.0,0.14688912]
[1763435738785,0.30471545,90550.0,90541.0,0.03240109]
[1763435738982,0.16467873,90549.0,90542.0,0.03240109]
[1763435739281,0.16467873,90549.0,90543.0,0.03240109]
[1763435739594,0.08934,90545.0,90544.0,0.03240109]
[1763435740676,0.08934,90545.0,90544.0,0.07651109]
[1763435741077,0.08915132,90550.0,90544.0,0.07651109]
[1763435741078,0.08915132,90550.0,90544.0,0.14924869]
[1763435741278,0.08915132,90550.0,90549.0,0.0871]
[1763435741487,0.08915132,90550.0,90549.0,0.11950109]
[1763435741688,0.25513692,90550.0,90549.0,0.11950109]
[1763435742181,0.08915132,90550.0,90549.0,0.15931754]
[1763435743189,0.08915132,90550.0,90549.0,0.11950109]
[1763435743881,0.03692661,90576.0,90550.0,0.00219803]
[1763435744187,0.08934,90566.0,90559.0,0.0396382]
[1763435744390,0.04273,90561.0,90560.0,0.07870912]
[1763435744690,0.34187749,90561.0,90560.0,0.16133732]
[1763435744987,0.25418486,90561.0,90560.0,0.03459912]
[1763435745184,0.34276176,90561.0,90560.0,0.03240109]
[1763435745781,0.10766,90552.0,90551.0,0.00016569]
[1763435745982,0.37746,90552.0,90551.0,0.00016569]
[1763435746285,0.54278609,90552.0,90551.0,0.00016569]
[1763435747293,0.52446609,90552.0,90551.0,0.00016569]
[1763435747687,0.43608609,90552.0,90551.0,0.08726569]
[1763435747887,0.16632609,90552.0,90551.0,0.08726569]
[1763435748091,0.00016569,90570.0,90569.0,0.0871]
[1763435748992,0.16674486,90570.0,90569.0,0.0871]
[1763435749491,0.00016569,90570.0,90569.0,0.0871]
[1763435749687,0.26976,90582.0,90581.0,0.0871]
[1763435750288,0.08934,90581.0,90580.0,0.00219803]
[1763435750692,0.08934,90572.0,90571.0,0.00016569]
[1763435750897,0.56650638,90581.0,90562.0,0.00016569]
[1763435750898,0.08934,90563.0,90562.0,0.00016569]
[1763435752796,0.003,90581.0,90564.0,0.0871]
[1763435752988,0.001,90581.0,90580.0,0.0871]
[1763435753183,0.001,90581.0,90580.0,0.08929803]
[1763435753389,0.8703017,90588.0,90581.0,0.0871]
[1763435753697,0.8703017,90588.0,90580.0,0.02738803]
[1763435753698,0.27472,90596.0,90589.0,0.0871]
[1763435754201,0.08893353,90594.0,90589.0,0.0871]
[1763435754697,0.27472,90596.0,90589.0,0.0871]
[1763435755394,0.45571012,90590.0,90580.0,0.02519]
[1763435755601,0.60231863,90590.0,90580.0,0.00219803]
[1763435755994,0.60331863,90590.0,90580.0,0.00219803]
[1763435756301,0.60531863,90590.0,90580.0,0.00219803]
[1763435756596,0.60431863,90590.0,90580.0,0.00219803]
[1763435756797,0.60531863,90590.0,90580.0,0.00219803]
[1763435756997,0.45871012,90590.0,90580.0,0.00219803]
[1763435757200,0.60531863,90590.0,90580.0,0.00219803]
[1763435757493,0.04273,90581.0,90576.0,0.00016559]
[1763435757799,0.08398,90577.0,90576.0,0.00016559]
[1763435758000,0.203,90590.0,90589.0,0.08512]
[1763435758191,0.51545,90590.0,90580.0,0.02334]
[1763435758396,0.203,90590.0,90589.0,0.08512]
[1763435758599,0.203,90590.0,90589.0,0.1168253]
[1763435758990,0.202,90590.0,90589.0,0.1168253]
[1763435759197,0.2,90590.0,90589.0,0.1168253]
[1763435759799,0.201,90590.0,90589.0,0.1168253]
[1763435759997,0.203,90590.0,90589.0,0.1168253]
[1763435760197,0.1817717,90590.0,90589.0,0.5168253]
[1763435760400,0.17206701,90590.0,90589.0,0.5168253]
[1763435760702,0.06170701,90590.0,90589.0,0.6271853]
[1763435761096,0.00222701,90596.0,90595.0,0.08512]
[1763435761296,0.08910339,90619.0,90605.0,0.08512]
[1763435761496,0.14660851,90610.0,90605.0,0.1168253]
[1763435761696,0.08910339,90619.0,90605.0,0.1168253]
[1763435762406,0.00327592,90606.0,90605.0,0.1168253]
[1763435762797,0.19761587,90606.0,90605.0,0.0317053]
[1763435763106,0.08925592,90606.0,90605.0,0.0317053]
[1763435763401,0.36519476,90606.0,90605.0,0.02218243]
[1763435763602,0.36519476,90606.0,90596.0,0.00016559]
[1763435763603,0.08398,90597.0,90596.0,0.00016559]
[1763435763899,0.35991884,90597.0,90569.0,0.03956119]
[1763435764099,0.14660851,90590.0,90580.0,0.00219803]
[1763435764502,0.16525745,90589.0,90580.0,0.00219803]
[1763435764902,0.2756174,90589.0,90580.0,0.00219803]
[1763435765301,0.08398,90576.0,90575.0,0.00016559]
[1763435765703,0.19433995,90576.0,90575.0,0.04291559]
[1763435765895,0.19433995,90576.0,90575.0,0.00016559]
[1763435766295,0.19433995,90576.0,90534.0,0.01204246]
[1763435766296,0.08398,90555.0,90547.0,0.03956119]
[1763435766599,0.08398,90555.0,90550.0,0.00219803]
[1763435766795,0.19433995,90555.0,90550.0,0.00219803]
[1763435767400,0.11035995,90555.0,90554.0,0.08521651]
[1763435767600,0.14660851,90564.0,90554.0,0.08521651]
[1763435767796,0.24992275,90555.0,90554.0,0.04284651]
[1763435767996,0.04277,90555.0,90554.0,0.08521651]
[1763435768202,0.08398,90555.0,90550.0,0.00236362]
[1763435768510,0.08398,90551.0,90550.0,0.00236362]
[1763435768701,0.19433995,90551.0,90550.0,0.00236362]
[1763435769010,0.19433995,90551.0,90550.0,0.04511362]
[1763435769509,0.11035995,90551.0,90550.0,0.08748362]
[1763435769703,0.1898,90564.0,90550.0,0.08748362]
[1763435770001,0.08398,90551.0,90550.0,0.00236362]
[1763435770196,0.08398,90551.0,90550.0,0.00016559]
[1763435770197,0.19433995,90551.0,90550.0,0.00016559]
[1763435770603,0.19433995,90551.0,90528.0,0.05938978]
[1763435770604,0.08398,90535.0,90530.0,0.03956119]
[1763435770796,0.08398,90527.0,90519.0,0.03956119]
[1763435771003,0.08407886,90527.0,90516.0,0.03956119]
[1763435771202,0.19443881,90527.0,90516.0,0.03956119]
[1763435771408,0.19443881,90527.0,90515.0,0.03956119]
[1763435771602,0.08407886,90527.0,90517.0,0.00016569]
[1763435772009,9.886e-05,90527.0,90526.0,0.04302617]
[1763435772392,9.886e-05,90527.0,90526.0,0.08639617]
[1763435772795,0.11045881,90527.0,90526.0,0.08639617]
[1763435773098,0.08407886,90527.0,90526.0,0.00127617]
[1763435773303,0.19443881,90527.0,90526.0,0.00127617]
[1763435773506,0.36112477,90527.0,90526.0,0.00127617]
[1763435774508,0.08398,90518.0,90497.0,0.03956119]
[1763435774698,0.08398,90505.0,90491.0,0.03956119]
[1763435774898,0.08398,90505.0,90490.0,0.03956119]
[1763435775095,0.19433995,90505.0,90488.0,0.03956119]
[1763435775406,0.19433995,90505.0,90487.0,0.03956119]
[1763435775604,0.08398,90505.0,90504.0,0.07416793]
[1763435775803,0.08406944,90505.0,90504.0,0.03141793]
[1763435776002,8.944e-05,90505.0,90504.0,0.11853793]
[1763435776204,0.17453253,90505.0,90504.0,0.03341793]
[1763435776515,0.08406944,90505.0,90504.0,0.03341793]
[1763435776700,0.19442939,90505.0,90504.0,0.03341793]
[1763435777711,0.17461234,90505.0,90504.0,0.03341793]
[1763435779010,0.28497229,90505.0,90504.0,0.03341793]
[1763435779698,0.17461234,90505.0,90504.0,0.03341793]
[1763435779902,0.17461234,90505.0,90495.0,0.00513831]
[1763435779903,0.08251,90496.0,90495.0,0.00513831]
[1763435780105,0.08251,90487.0,90463.0,0.03956119]
[1763435780305,0.21667995,90480.0,90479.0,9.6e-07]
[1763435780706,0.38165112,90480.0,90479.0,9.6e-07]
[1763435780915,0.08251,90456.0,90445.0,1.5]
[1763435781101,0.08251,90456.0,90455.0,0.03637397]
[1763435781305,0.35784149,90456.0,90455.0,0.00497482]
[1763435781707,0.37020823,90456.0,90455.0,0.00497482]
[1763435782416,0.08251,90447.0,90446.0,0.00044219]
[1763435782613,0.46254995,90447.0,90446.0,0.00044219]
[1763435782911,0.60990054,90447.0,90446.0,0.00044219]
[1763435784217,0.61001885,90447.0,90446.0,0.00044219]
[1763435784712,0.51001885,90447.0,90446.0,0.00044219]
[1763435784919,0.5171889,90447.0,90446.0,0.00044219]
[1763435786112,0.2474689,90447.0,90446.0,0.00044219]
[1763435786313,0.5171889,90447.0,90446.0,0.00044219]
[1763435786506,0.4171889,90447.0,90446.0,0.00044219]
[1763435787912,0.1474689,90447.0,90446.0,0.00044219]
[1763435788110,0.4172289,90447.0,90446.0,0.00044219]